fUSD/lending_fUSD_20240421
["ID","MTS","AMOUNT","RATE_DAILY","PERIOD"]
[323140737,1713707454243,-500.0,0.00017534,2]
[323140738,1713707454253,-500.0,0.00017534,2]
[323140739,1713707454262,-546.29,0.00017534,2]
[323140740,1713707454272,-500.0,0.00017534,2]
[323140741,1713707454282,-2473.81,0.00017534,2]
[323140742,1713707454291,-500.0,0.00017534,2]
[323140743,1713707454300,-500.0,0.00017534,2]
[323140744,1713707454309,-500.0,0.00017534,2]
[323140745,1713707454321,-607.89,0.00017534,2]
[323140746,1713707454330,-500.0,0.00017534,2]
[323140747,1713707454340,-500.0,0.00017534,2]
[323140748,1713707454350,-666.05,0.00017534,2]
[323140749,1713707454360,-631.03,0.00017534,2]
[323140750,1713707454370,-643.31,0.00017534,2]
[323140751,1713707454379,-500.0,0.00017534,2]
[323140752,1713707454388,-500.0,0.00017534,2]
[323140753,1713707454397,-1118.62,0.00017534,2]
[323140754,1713707454406,-500.0,0.00017534,2]
[323140755,1713707454415,-500.0,0.00017534,2]
[323140756,1713707454425,-500.0,0.00017534,2]
[323140757,1713707454434,-500.0,0.00017534,2]
[323140758,1713707454444,-500.0,0.00017534,2]
[323140759,1713707454453,-500.0,0.00017534,2]
[323140760,1713707454462,-500.0,0.00017534,2]
[323140761,1713707454471,-500.0,0.00017534,2]
[323140762,1713707454480,-500.0,0.00017534,2]
[323140763,1713707454489,-500.0,0.00017534,2]
[323140764,1713707454498,-500.0,0.00017534,2]
[323140765,1713707454508,-500.0,0.00017534,2]
[323140766,1713707454517,-500.0,0.00017534,2]
[323140767,1713707454527,-745.95,0.00017534,2]
[323140768,1713707454536,-500.0,0.00017534,2]
[323140769,1713707454545,-500.0,0.00017534,2]
[323140770,1713707454557,-500.0,0.00017534,2]
[323140771,1713707454569,-500.0,0.00017534,2]
[323140772,1713707454578,-500.0,0.00017534,2]
[323140773,1713707454587,-611.47,0.00017534,2]
[323140774,1713707454597,-500.0,0.00017534,2]
[323140775,1713707454606,-500.0,0.00017534,2]
[323140776,1713707454616,-156.852872,0.00017534,2]
[323140777,1713707454625,-551.0,0.00017559,2]
[323140778,1713707454635,-391.93026171,0.00017664,2]
[323140779,1713707454645,-1360.0,0.000177,2]
[323140780,1713707454654,-6607.93758845,0.00017749,2]
[323140781,1713707454664,-814.74,0.00017804,2]
[323140782,1713707454673,-1005.73,0.00017804,2]
[323140783,1713707454683,-623.41,0.00017804,2]
[323140784,1713707454693,-3477.15,0.00017804,2]
[323140785,1713707454702,-819.88,0.00017804,2]
[323140786,1713707454712,-998.0,0.00017804,2]
[323140787,1713707454722,-834.13,0.00017804,2]
[323140788,1713707454733,-2826.36,0.00017804,2]
[323140789,1713707454742,-2110.56,0.00017804,2]
[323140790,1713707454751,-1229.48,0.00017804,2]
[323140791,1713707454761,-669.03,0.00017804,2]
[323140792,1713707454772,-610.7,0.00017804,2]
[323140793,1713707454781,-929.05,0.00017804,2]
[323140794,1713707454790,-500.0,0.00017805,2]
[323140795,1713707454800,-637.33,0.00017805,2]
[323140796,1713707454809,-710.46,0.00017805,2]
[323140797,1713707454822,-199.79,0.00017805,2]
[323140798,1713707454832,-500.0,0.00017805,2]
[323140799,1713707454842,-500.0,0.00017805,2]
[323140800,1713707454852,-439.99,0.00017805,2]
[323140801,1713707454862,-11348.69,0.00017805,2]
[323140802,1713707454871,-548.11,0.00017805,2]
[323140803,1713707454880,-800.01,0.00017805,2]
[323140804,1713707454890,-500.0,0.00017805,2]
[323140805,1713707454899,-500.0,0.00017805,2]
[323140806,1713707454908,-500.0,0.00017805,2]
[323140807,1713707454918,-500.0,0.00017805,2]
[323140808,1713707454927,-1304.44,0.00017805,2]
[323140809,1713707454937,-500.0,0.00017805,2]
[323140810,1713707454947,-859.05,0.00017805,2]
[323140811,1713707454958,-500.0,0.00017805,2]
[323140812,1713707454968,-912.21,0.00017805,2]
[323140813,1713707454978,-837.9,0.00017805,2]
[323140814,1713707454987,-647.98,0.00017805,2]
[323140815,1713707454997,-500.0,0.00017805,2]
[323140816,1713707455007,-1005.47,0.00017805,2]
[323140817,1713707455017,-3557.51,0.00017805,2]
[323140818,1713707455026,-1035.77,0.00017805,2]
[323140819,1713707455037,-500.0,0.00017805,2]
[323140820,1713707455047,-777.16,0.00017805,2]
[323140821,1713707455057,-500.0,0.00017805,2]
[323140822,1713707455070,-619.38,0.00017805,2]
[323140823,1713707455080,-837.69,0.00017805,2]
[323140824,1713707455089,-976.86,0.00017805,2]
[323140825,1713707455098,-982.42,0.00017805,2]
[323140826,1713707455107,-1024.6,0.00017805,2]
[323140827,1713707455117,-500.0,0.00017805,2]
[323140828,1713707455126,-1189.47,0.00017805,2]
[323140829,1713707455135,-2071.49,0.00017805,2]
[323140830,1713707455145,-1571.81,0.00017805,2]
[323140831,1713707455155,-1022.31,0.00017805,2]
[323140832,1713707455164,-1773.08,0.00017805,2]
[323140833,1713707455174,-2949.54,0.00017805,2]
[323140834,1713707455183,-500.0,0.00017805,2]
[323140835,1713707455402,-1455.34,0.00017805,2]
[323140836,1713707455412,-1689.47,0.00017805,2]
[323140837,1713707455421,-500.0,0.00017805,2]
[323140838,1713707455431,-500.0,0.00017805,2]
[323140839,1713707455440,-1616.12,0.00017805,2]
[323140840,1713707455450,-500.0,0.00017805,2]
[323140841,1713707455460,-500.0,0.00017805,2]
[323140842,1713707455469,-600.65,0.00017805,2]
[323140843,1713707455478,-1201.38,0.00017805,2]
[323140844,1713707455488,-500.0,0.00017805,2]
[323140845,1713707455497,-735.22,0.00017805,2]
[323140846,1713707455507,-500.0,0.00017805,2]
[323140847,1713707455516,-500.0,0.00017805,2]
[323140848,1713707455526,-1418.08,0.00017805,2]
[323140849,1713707455536,-1242.2,0.00017805,2]
[323140850,1713707455546,-1625.52,0.00017805,2]
[323140851,1713707455556,-927.36,0.00017805,2]
[323140852,1713707455569,-1629.03,0.00017805,2]
[323140853,1713707455578,-155.8,0.00017805,2]
[323140854,1713707455591,-623.84,0.00017806,2]
[323140855,1713707455601,-500.0,0.00017806,2]
[323140856,1713707455611,-605.56,0.00017806,2]
[323140857,1713707455620,-892.02,0.00017806,2]
[323140858,1713707455630,-603.85,0.00017806,2]
[323140859,1713707455640,-1203.37,0.00017806,2]
[323140860,1713707455650,-689.95,0.00017806,2]
[323140861,1713707455660,-595.79,0.00017806,2]
[323140862,1713707455669,-1118.52,0.00017806,2]
[323140863,1713707455679,-500.0,0.00017806,2]
[323140864,1713707455688,-1113.45,0.00017806,2]
[323140865,1713707455698,-758.95,0.00017806,2]
[323140866,1713707455707,-538.92,0.00017806,2]
[323140867,1713707455717,-500.0,0.00017806,2]
[323140868,1713707455727,-905.09,0.00017806,2]
[323140869,1713707455737,-500.0,0.00017806,2]
[323140870,1713707455746,-500.0,0.00017806,2]
[323140871,1713707455756,-634.5,0.00017806,2]
[323140872,1713707455765,-500.0,0.00017806,2]
[323140873,1713707455775,-500.0,0.00017806,2]
[323140874,1713707455785,-558.9,0.00017806,2]
[323140875,1713707455794,-500.0,0.00017806,2]
[323140876,1713707455804,-804.41,0.00017806,2]
[323140877,1713707455815,-523.87,0.00017806,2]
[323140878,1713707455824,-611.49,0.00017806,2]
[323140879,1713707455834,-500.0,0.00017806,2]
[323140880,1713707455843,-665.96,0.00017806,2]
[323140881,1713707455853,-727.6,0.00017806,2]
[323140882,1713707455862,-639.63,0.00017806,2]
[323140883,1713707455872,-664.11,0.00017806,2]
[323140884,1713707455882,-291.12,0.00017806,2]
[323140885,1713707455891,-864.7,0.00017806,2]
[323140886,1713707455901,-500.0,0.00017806,2]
[323140887,1713707455911,-500.0,0.00017806,2]
[323140888,1713707455922,-925.58,0.00017806,2]
[323140889,1713707455932,-636.37,0.00017806,2]
[323140890,1713707455942,-4224.5,0.00017806,2]
[323140891,1713707455951,-500.0,0.00017806,2]
[323140892,1713707455963,-2800.62,0.00017806,2]
[323140893,1713707455974,-1043.21,0.00017806,2]
[323140894,1713707455985,-500.0,0.00017806,2]
[323140895,1713707455995,-1597.37,0.00017806,2]
[323140896,1713707456005,-1250.84,0.00017806,2]
[323140897,1713707456014,-607.21,0.00017806,2]
[323140898,1713707456023,-809.01,0.00017806,2]
[323140899,1713707456033,-699.92,0.00017806,2]
[323140900,1713707456042,-500.0,0.00017806,2]
[323140901,1713707456052,-1083.51,0.00017806,2]
[323140902,1713707456061,-500.0,0.00017806,2]
[323140903,1713707456072,-500.0,0.00017806,2]
[323140904,1713707456082,-985.92,0.00017806,2]
[323140905,1713707456092,-5474.95,0.00017806,2]
[323140906,1713707456102,-500.0,0.00017806,2]
[323140907,1713707456111,-1158.52,0.00017806,2]
[323140908,1713707456121,-500.0,0.00017806,2]
[323140909,1713707456130,-500.0,0.00017806,2]
[323140910,1713707456140,-500.0,0.00017806,2]
[323140911,1713707456149,-500.0,0.00017806,2]
[323140912,1713707456159,-500.0,0.00017806,2]
[323140913,1713707456169,-531.06,0.00017806,2]
[323140914,1713707456179,-993.51,0.00017806,2]
[323140915,1713707456189,-500.0,0.00017806,2]
[323140916,1713707456199,-407.79,0.00017806,2]
[323140917,1713707456209,-802.39,0.00017806,2]
[323140918,1713707456219,-622.46,0.00017806,2]
[323140919,1713707456229,-500.0,0.00017806,2]
[323140920,1713707456238,-500.0,0.00017806,2]
[323140921,1713707456248,-500.0,0.00017806,2]
[323140922,1713707456258,-545.32,0.00017806,2]
[323140923,1713707456268,-500.0,0.00017806,2]
[323140924,1713707456279,-500.0,0.00017806,2]
[323140925,1713707456288,-500.0,0.00017806,2]
[323140926,1713707456298,-1037.97,0.00017806,2]
[323140927,1713707456308,-1000.0,0.00017806,2]
[323140928,1713707456323,-603.9,0.00017806,2]
[323140929,1713707456332,-500.0,0.00017806,2]
[323140930,1713707456341,-500.0,0.00017806,2]
[323140931,1713707456350,-500.0,0.00017806,2]
[323140932,1713707456360,-1712.92,0.00017806,2]
[323140933,1713707456370,-500.0,0.00017807,2]
[323140934,1713707456379,-500.0,0.00017807,2]
[323140935,1713707456388,-611.86,0.00017807,2]
[323140936,1713707456398,-500.0,0.00017807,2]
[323140937,1713707456407,-500.0,0.00017807,2]
[323140938,1713707456416,-1085.48,0.00017807,2]
[323140939,1713707456426,-1244.62,0.00017807,2]
[323140940,1713707456435,-831.75,0.00017807,2]
[323140941,1713707456445,-500.0,0.00017807,2]
[323140942,1713707456454,-683.17,0.00017807,2]
[323140943,1713707456463,-500.0,0.00017807,2]
[323140944,1713707456473,-525.3,0.00017807,2]
[323140945,1713707456483,-500.0,0.00017808,2]
[323140946,1713707456493,-500.0,0.00017808,2]
[323140947,1713707456502,-500.0,0.00017808,2]
[323140948,1713707456513,-500.0,0.00017808,2]
[323140949,1713707456522,-500.0,0.00017808,2]
[323140950,1713707456532,-500.0,0.00017808,2]
[323140951,1713707456541,-500.0,0.00017808,2]
[323140952,1713707456551,-500.0,0.00017808,2]
[323140953,1713707456560,-500.0,0.00017808,2]
[323140954,1713707456573,-500.0,0.00017808,2]
[323140955,1713707456583,-500.0,0.00017808,2]
[323140956,1713707456593,-500.0,0.00017808,2]
[323140957,1713707456602,-500.0,0.00017808,2]
[323140958,1713707456612,-624.11,0.00017808,2]
[323140959,1713707456622,-501.52,0.00017808,2]
[323140960,1713707456632,-500.0,0.00017808,2]
[323140961,1713707456642,-500.0,0.00017808,2]
[323140962,1713707456651,-554.86,0.00017808,2]
[323140963,1713707456661,-590.97,0.00017808,2]
[323140964,1713707456671,-500.0,0.00017808,2]
[323140965,1713707456680,-500.0,0.00017808,2]
[323140966,1713707456690,-500.0,0.00017808,2]
[323140967,1713707456701,-500.0,0.00017808,2]
[323140968,1713707456710,-500.0,0.00017808,2]
[323140969,1713707456720,-500.0,0.00017808,2]
[323140970,1713707456729,-500.0,0.00017808,2]
[323140971,1713707456739,-500.0,0.00017808,2]
[323140972,1713707456748,-500.0,0.00017808,2]
[323140973,1713707456758,-500.0,0.00017808,2]
[323140974,1713707456768,-507.08,0.00017808,2]
[323140975,1713707456778,-500.0,0.00017808,2]
[323140976,1713707456788,-508.02,0.00017808,2]
[323140977,1713707456798,-500.0,0.00017808,2]
[323140978,1713707456807,-537.42,0.00017808,2]
[323140979,1713707456822,-502.18,0.00017808,2]
[323140980,1713707456832,-500.0,0.00017808,2]
[323140981,1713707456842,-686.1,0.00017808,2]
[323140982,1713707456852,-500.0,0.00017808,2]
[323140983,1713707456862,-787.4,0.00017808,2]
[323140984,1713707456871,-500.0,0.00017808,2]
[323140985,1713707456881,-500.0,0.00017808,2]
[323140986,1713707456891,-546.29,0.00017808,2]
[323140987,1713707456900,-500.0,0.00017808,2]
[323140988,1713707456910,-2473.81,0.00017808,2]
[323140989,1713707456921,-500.0,0.00017808,2]
[323140990,1713707456930,-500.0,0.00017808,2]
[323140991,1713707456941,-500.0,0.00017808,2]
[323140992,1713707456950,-607.89,0.00017808,2]
[323140993,1713707456960,-500.0,0.00017808,2]
[323140994,1713707456970,-500.0,0.00017808,2]
[323140995,1713707456980,-666.05,0.00017808,2]
[323140996,1713707456990,-631.03,0.00017808,2]
[323140997,1713707456999,-643.31,0.00017808,2]
[323140998,1713707457009,-500.0,0.00017808,2]
[323140999,1713707457019,-500.0,0.00017808,2]
[323141000,1713707457029,-1118.62,0.00017808,2]
[323141001,1713707457040,-500.0,0.00017808,2]
[323141002,1713707457049,-500.0,0.00017808,2]
[323141003,1713707457059,-500.0,0.00017808,2]
[323141004,1713707457072,-500.0,0.00017808,2]
[323141005,1713707457081,-500.0,0.00017808,2]
[323141006,1713707457091,-500.0,0.00017808,2]
[323141007,1713707457101,-500.0,0.00017808,2]
[323141008,1713707457110,-162.23,0.00017808,2]
[323141009,1713707457119,-500.0,0.00017808,2]
[323141010,1713707457130,-500.0,0.00017808,2]
[323141011,1713707457140,-500.0,0.00017808,2]
[323141012,1713707457151,-500.0,0.00017808,2]
[323141013,1713707457161,-500.0,0.00017808,2]
[323141014,1713707457171,-745.95,0.00017808,2]
[323141015,1713707457181,-500.0,0.00017808,2]
[323141016,1713707457191,-500.0,0.00017808,2]
[323141017,1713707457202,-500.0,0.00017808,2]
[323141018,1713707457212,-500.0,0.00017808,2]
[323141019,1713707457222,-500.0,0.00017808,2]
[323141020,1713707457231,-611.47,0.00017808,2]
[323141021,1713707457242,-500.0,0.00017808,2]
[323141022,1713707457253,-500.0,0.00017808,2]
[323141023,1713707457263,-2100.0,0.0001782,2]
[323141024,1713707457275,-188.39,0.00017841,2]
[323141025,1713707457284,-200.0,0.00017851,2]
[323141026,1713707457294,-1000.0,0.00017851,2]
[323141027,1713707457477,-500.0,0.00017851,2]
[323141028,1713707457487,-1000.0,0.00017855,2]
[323141029,1713707457496,-500.0,0.00017855,2]
[323141030,1713707457506,-200.88129127,0.00017899,2]
[323141031,1713707457515,-37377.89421114,0.000179,5]
[323141032,1713707457524,-500.0,0.00017986,2]
[323141033,1713707457534,-8204.3278202,0.00017987,2]
[323141034,1713707457543,-44777.218121,0.00017987,2]
[323141035,1713707457552,-2245.9495239,0.00017987,2]
[323141036,1713707457563,-682158.9551624,0.00017997,2]
[323141037,1713707457572,-1311.71247258,0.00017997,2]
[323141038,1713707457591,-15837.21140783,0.00017997,2]
[323141039,1713707457604,-25842.65551939,0.00017997,2]
[323141040,1713707458237,-300.0,0.00016438,2]
[323141041,1713707458251,-14.8190578,0.00016438,2]
[323141042,1713707458263,-1000.0,0.00017258,2]
[323141043,1713707458275,-1387.90171703,0.00017258,2]
[323141044,1713707458286,-500.0,0.00017532,2]
[323141045,1713707458297,-500.0,0.00017806,2]
[323141046,1713707458307,-925.77891017,0.00017997,2]
[323141047,1713707458321,-27182.41994823,0.00017997,2]
[323141048,1713707458338,-1808.2066509,0.00017997,2]
[323141049,1713707458349,-337.83431027,0.00017997,2]
[323141050,1713707458366,-6455.5,0.00017997,2]
[323141051,1713707458377,-750.0,0.00017997,2]
[323141052,1713707458388,-129420.00000011,0.00017997,2]
[323141053,1713707461550,-471939.21323565,0.00017997,2]
[323141054,1713707461562,-18263.35539913,0.00017997,2]
[323141055,1713707462344,247.82015446,0.00013368,2]
[323141068,1713707602849,619.60497522,0.0001305,2]
[323141070,1713707621540,298.71922923,0.00013368,2]
[323141071,1713707622581,155.0,0.00013368,2]
[323141072,1713707624056,344.30138098,0.00013368,2]
[323141073,1713707627515,56.15654456,0.00013368,2]
[323141074,1713707627536,267.51553634,0.00013368,2]
[323141075,1713707627568,352.49156069,0.00013368,2]
[323141076,1713707628864,155.0,0.00013368,2]
[323141077,1713707631245,173.03375485,0.00013368,2]
[323141078,1713707633479,179.62352316,0.00013368,2]
[323141080,1713707642574,159.17219393,0.00013368,2]
[323141081,1713707643548,297.6748788,0.00013368,2]
[323141082,1713707643998,211.36627988,0.00013368,2]
[323141083,1713707644849,155.0,0.00013368,2]
[323141084,1713707647437,195.59004108,0.00013368,2]
[323141085,1713707651359,173.59129416,0.00013368,2]
[323141086,1713707657426,179.62352316,0.00013368,2]
[323141087,1713707661092,155.0,0.00013368,2]
[323141089,1713707675421,275.42520345,0.00013368,2]
[323141090,1713707680148,208.72055994,0.0001,2]
[323141091,1713707680840,155.0,0.00013368,2]
[323141093,1713707690927,182.78,0.00012719,2]
[323141094,1713707696836,155.0,0.00013368,2]
[323141095,1713707722849,192.17013602,0.00013368,2]
[323141096,1713707733033,423.55999838,0.00013546,2]
[323141097,1713707746754,255.3668917,0.00013645,2]
[323141098,1713707753682,207.72132305,0.00013645,2]
[323141099,1713707809509,1240.45102906,0.00013645,2]
[323141100,1713707809532,1759.05090168,0.00013645,2]
[323141101,1713707861489,4604.64800558,0.00027,120]
[323141102,1713707877896,162.912235,0.00013645,2]
[323141104,1713707957021,-3976.7739,0.00013646,2]
[323141105,1713707957202,408.44629625,0.00013645,2]
[323141106,1713707973132,306.10339788,0.00013645,2]
[323141107,1713707993314,667.48,0.00013504,2]
[323141108,1713708138800,4200.0,0.00022,30]
[323141109,1713708211504,182.78,0.00012219,2]
[323141116,1713708566745,634.1,0.00013111,2]
[323141122,1713708631788,-255.3668917,0.00014527,2]
[323141123,1713708631798,-189.35794089,0.00014528,2]
[323141124,1713708631807,-2495.11113349,0.00014636,2]
[323141125,1713708631816,-155.23150943,0.0001489,2]
[323141127,1713708631826,-283.48252449,0.0001499,2]
[323141129,1713708631843,-137.87646049,0.0001499,2]
[323141131,1713708631853,-150.0,0.00014999,2]
[323141133,1713708631862,-8915.31745441,0.00015,3]
[323141134,1713708632144,-2950.49726927,0.00015,3]
[323141135,1713708632156,-503.15430007,0.00015,3]
[323141136,1713708632167,-259.19772457,0.00015,3]
[323141137,1713708632178,-1648.67536,0.00015,3]
[323141180,1713708637583,-4510.56290514,0.00015,3]
[323141181,1713708637637,-523.02928893,0.00015,3]
[323141182,1713708637648,-830.53999099,0.00015,3]
[323141183,1713708637747,-3209.94494954,0.00015,3]
[323141184,1713708637797,-57257.23358559,0.00015,3]
[323141185,1713708637807,-3078.46,0.00015039,2]
[323141186,1713708637816,-3616.15239332,0.00015056,2]
[323141228,1713708639698,-1949.34615181,0.00015056,2]
[323141252,1713708642738,-1702.41490652,0.00015056,2]
[323141253,1713708642750,-2350.35654835,0.00015056,2]
[323141254,1713708642759,-4541.52,0.00015139,2]
[323141255,1713708642768,-3898.15,0.00015195,2]
[323141256,1713708642777,-1794.53,0.00015195,2]
[323141257,1713708642786,-268.27,0.00015206,2]
[323141258,1713708642795,-23900.0,0.00015217,2]
[323141259,1713708642804,-150.99,0.00015217,2]
[323141260,1713708642814,-150.99,0.00015217,2]
[323141261,1713708642822,-159.49,0.00015261,2]
[323141262,1713708642831,-386.91,0.0001527,2]
[323141263,1713708642840,-200.0,0.0001527,2]
[323141264,1713708642850,-499.99,0.0001527,2]
[323141265,1713708642859,-182.78,0.00015274,2]
[323141266,1713708642869,-662.34,0.00015274,2]
[323141267,1713708642878,-4080.86,0.00015311,2]
[323141268,1713708642887,-634.1,0.00015375,2]
[323141269,1713708642896,-159.49,0.00015526,2]
[323141270,1713708642905,-181.9451404,0.00015532,2]
[323141271,1713708642914,-150.72,0.00015543,2]
[323141272,1713708642923,-795.3189297,0.00015775,2]
[323141273,1713708642933,-159.49,0.00015791,2]
[323141274,1713708642943,-1000.0,0.00016,2]
[323141275,1713708642953,-159.49,0.00016056,2]
[323141276,1713708642962,-702.28,0.0001611,10]
[323141277,1713708642972,-179.85520839,0.00016208,2]
[323141278,1713708642981,-150.0,0.00016499,2]
[323141279,1713708642990,-300.0,0.0001661,2]
[323141280,1713708643000,-1300.07738684,0.00016653,2]
[323141281,1713708643009,-404.33,0.00016699,3]
[323141282,1713708643018,-500.0,0.00016708,2]
[323141283,1713708643027,-500.0,0.00016708,2]
[323141284,1713708643036,-500.0,0.00016708,2]
[323141285,1713708643045,-500.0,0.00016708,2]
[323141286,1713708643055,-500.0,0.00016708,2]
[323141287,1713708643065,-500.0,0.00016708,2]
[323141288,1713708643074,-500.0,0.00016708,2]
[323141290,1713708643083,-500.0,0.00016708,2]
[323141292,1713708643092,-500.0,0.00016708,2]
[323141295,1713708643101,-500.0,0.00016709,2]
[323141297,1713708643111,-500.0,0.00016709,2]
[323141298,1713708643121,-500.0,0.00016709,2]
[323141299,1713708643130,-500.0,0.00016709,2]
[323141300,1713708643139,-500.0,0.00016709,2]
[323141301,1713708643149,-500.0,0.00016709,2]
[323141302,1713708643158,-500.0,0.00016709,2]
[323141303,1713708643167,-500.0,0.00016709,2]
[323141304,1713708643176,-500.0,0.00016709,2]
[323141305,1713708643185,-500.0,0.00016709,2]
[323141306,1713708643195,-500.0,0.00016709,2]
[323141307,1713708643204,-500.0,0.00016709,2]
[323141308,1713708643213,-500.0,0.00016709,2]
[323141309,1713708643222,-500.0,0.00016709,2]
[323141310,1713708643232,-500.0,0.00016709,2]
[323141311,1713708643241,-500.0,0.00016709,2]
[323141312,1713708643250,-500.0,0.00016709,2]
[323141313,1713708643260,-500.0,0.00016709,2]
[323141314,1713708643269,-500.0,0.00016709,2]
[323141315,1713708643278,-500.0,0.00016709,2]
[323141316,1713708643287,-500.0,0.00016709,2]
[323141317,1713708643297,-500.0,0.00016709,2]
[323141318,1713708643306,-500.0,0.00016709,2]
[323141319,1713708643317,-500.0,0.00016709,2]
[323141320,1713708643326,-500.0,0.00016709,2]
[323141321,1713708643336,-500.0,0.00016709,2]
[323141322,1713708643345,-500.0,0.00016709,2]
[323141323,1713708643354,-500.0,0.00016709,2]
[323141324,1713708643364,-500.0,0.00016709,2]
[323141325,1713708643373,-234.81921605,0.0001671,2]
[323141326,1713708643383,-155.0,0.0001671,2]
[323141327,1713708643392,-155.14111364,0.0001671,2]
[323141328,1713708643401,-500.0,0.0001671,2]
[323141329,1713708643411,-161.5228818,0.00016883,2]
[323141330,1713708643420,-1755.42,0.00016884,2]
[323141331,1713708643429,-621.92,0.00016884,2]
[323141332,1713708643439,-12340.97,0.00016884,2]
[323141333,1713708643448,-633.34,0.00016884,2]
[323141334,1713708643457,-500.0,0.00016884,2]
[323141335,1713708643466,-500.0,0.00016884,2]
[323141336,1713708643475,-532.37,0.00016884,2]
[323141337,1713708643485,-960.74,0.00016884,2]
[323141338,1713708643494,-1570.65,0.00016884,2]
[323141339,1713708643504,-718.17,0.00016884,2]
[323141340,1713708643514,-998.17,0.00016884,2]
[323141341,1713708643524,-1107.77,0.00016884,2]
[323141342,1713708643533,-500.0,0.00016884,2]
[323141343,1713708643543,-855.03,0.00016884,2]
[323141344,1713708643553,-951.93,0.00016884,2]
[323141345,1713708643566,-606.87,0.00016884,2]
[323141346,1713708643576,-597.82,0.00016884,2]
[323141347,1713708643585,-645.01,0.00016884,2]
[323141348,1713708643594,-500.0,0.00016884,2]
[323141349,1713708643605,-4233.45,0.00016884,2]
[323141350,1713708643614,-1108.52,0.00016884,2]
[323141351,1713708643624,-556.25,0.00016884,2]
[323141352,1713708643634,-796.2,0.00016884,2]
[323141353,1713708643644,-1053.91,0.00016884,2]
[323141354,1713708643654,-1073.0,0.00016884,2]
[323141355,1713708643663,-514.37,0.00016884,2]
[323141356,1713708643673,-915.62,0.00016884,2]
[323141357,1713708643684,-2387.28,0.00016884,2]
[323141358,1713708643694,-2131.68,0.00016884,2]
[323141359,1713708643703,-2752.74,0.00016884,2]
[323141360,1713708643713,-500.0,0.00016884,2]
[323141361,1713708643724,-1180.22,0.00016884,2]
[323141362,1713708643734,-649.07,0.00016884,2]
[323141363,1713708643743,-1202.96,0.00016884,2]
[323141364,1713708643752,-1490.94,0.00016884,2]
[323141365,1713708643762,-3041.04,0.00016884,2]
[323141366,1713708643772,-790.08,0.00016884,2]
[323141367,1713708643782,-1806.49,0.00016884,2]
[323141368,1713708643792,-1424.52,0.00016884,2]
[323141369,1713708643802,-500.0,0.00016884,2]
[323141370,1713708643813,-1099.87,0.00016884,2]
[323141371,1713708643823,-1489.57,0.00016884,2]
[323141372,1713708643833,-1347.8,0.00016884,2]
[323141373,1713708643843,-659.51,0.00016884,2]
[323141374,1713708643853,-500.0,0.00016884,2]
[323141375,1713708643863,-734.37,0.00016884,2]
[323141376,1713708643872,-1303.06,0.00016884,2]
[323141377,1713708643882,-1368.0,0.00016884,2]
[323141378,1713708643891,-1131.41,0.00016884,2]
[323141379,1713708643900,-660.35,0.00016884,2]